fUSD/lending_fUSD_20240222
["ID","MTS","AMOUNT","RATE_DAILY","PERIOD"]
[314855737,1708595450704,-815.17,0.00035616,2]
[314855738,1708595450714,-919.1,0.00035616,2]
[314855739,1708595450723,-502.85062914,0.00035616,2]
[314855740,1708595450733,-500.0,0.00035616,2]
[314855741,1708595450742,-500.0,0.00035616,2]
[314855742,1708595450751,-921.94,0.00035616,2]
[314855743,1708595450761,-500.0,0.00035616,2]
[314855744,1708595450770,-500.0,0.00035616,2]
[314855745,1708595450779,-500.0,0.00035616,2]
[314855746,1708595450790,-193.2207658,0.00035616,2]
[314855747,1708595450799,-500.0,0.00035616,2]
[314855748,1708595450809,-810.17,0.00035616,2]
[314855749,1708595450818,-1193.72,0.00035616,2]
[314855750,1708595450829,-500.0,0.00035616,2]
[314855751,1708595450838,-500.0,0.00035616,2]
[314855752,1708595450847,-500.0,0.00035616,2]
[314855753,1708595450858,-977.95,0.00035616,2]
[314855754,1708595450867,-500.0,0.00035616,2]
[314855755,1708595450876,-503.09180524,0.00035616,2]
[314855756,1708595450885,-500.0,0.00035616,2]
[314855757,1708595450895,-500.0,0.00035616,2]
[314855758,1708595450904,-500.0,0.00035616,2]
[314855759,1708595450913,-1304.26,0.00035616,2]
[314855760,1708595450922,-500.0,0.00035616,2]
[314855761,1708595450931,-500.0,0.00035616,2]
[314855762,1708595450940,-500.0,0.00035616,2]
[314855763,1708595450949,-606.51,0.00035616,2]
[314855764,1708595450958,-589.18,0.00035616,2]
[314855765,1708595450968,-548.13,0.00035616,2]
[314855766,1708595450977,-895.78,0.00035616,2]
[314855767,1708595450987,-500.0,0.00035616,2]
[314855768,1708595450996,-500.0,0.00035616,2]
[314855769,1708595451006,-500.0,0.00035616,2]
[314855770,1708595451015,-545.06,0.00035616,2]
[314855771,1708595451024,-500.0,0.00035616,2]
[314855772,1708595451033,-860.4,0.00035616,2]
[314855773,1708595451043,-500.0,0.00035616,2]
[314855774,1708595451052,-500.0,0.00035616,2]
[314855775,1708595451061,-507.35268548,0.00035616,2]
[314855776,1708595451071,-500.0,0.00035616,2]
[314855777,1708595451080,-500.0,0.00035616,2]
[314855778,1708595451089,-1243.62,0.00035616,2]
[314855779,1708595451099,-500.0,0.00035616,2]
[314855780,1708595451110,-1000.0,0.00035616,7]
[314855781,1708595451119,-1305.42,0.00035616,2]
[314855782,1708595451129,-500.0,0.00035616,2]
[314855783,1708595451138,-489.17150158,0.00035616,2]
[314855784,1708595451147,-500.0,0.00035616,2]
[314855785,1708595451157,-513.04126207,0.00035616,2]
[314855786,1708595451166,-500.0,0.00035616,2]
[314855787,1708595451176,-500.0,0.00035616,2]
[314855788,1708595451185,-1593.81,0.00035616,2]
[314855789,1708595451195,-500.0,0.00035616,2]
[314855790,1708595451204,-500.0,0.00035616,2]
[314855791,1708595451214,-500.0,0.00035616,2]
[314855792,1708595451224,-516.64597693,0.00035616,2]
[314855793,1708595451234,-500.0,0.00035616,2]
[314855794,1708595451244,-500.0,0.00035616,2]
[314855795,1708595451254,-500.0,0.00035616,2]
[314855796,1708595451264,-500.0,0.00035616,2]
[314855797,1708595451274,-539.15087277,0.00035616,2]
[314855798,1708595451283,-492.78660059,0.00035616,2]
[314855799,1708595451293,-500.0,0.00035616,2]
[314855800,1708595451302,-1316.86,0.00035616,2]
[314855801,1708595451311,-500.0,0.00035616,2]
[314855802,1708595451320,-500.0,0.00035616,2]
[314855803,1708595451330,-500.0,0.00035616,2]
[314855804,1708595451340,-500.16,0.00035616,2]
[314855805,1708595451349,-500.0,0.00035616,2]
[314855806,1708595451361,-646.76,0.00035616,2]
[314855807,1708595451371,-500.0,0.00035616,2]
[314855808,1708595451380,-632.02,0.00035616,2]
[314855809,1708595451389,-500.0,0.00035616,2]
[314855810,1708595451399,-500.0,0.00035616,2]
[314855811,1708595451408,-503.31647674,0.00035616,2]
[314855812,1708595451417,-500.0,0.00035616,2]
[314855813,1708595451426,-500.0,0.00035616,2]
[314855814,1708595451436,-540.12,0.00035616,2]
[314855815,1708595451446,-500.0,0.00035616,2]
[314855816,1708595451455,-500.0,0.00035616,2]
[314855817,1708595451464,-500.0,0.00035616,2]
[314855818,1708595451474,-500.0,0.00035616,2]
[314855819,1708595451483,-500.0,0.00035616,2]
[314855820,1708595451492,-500.0,0.00035616,2]
[314855821,1708595451501,-500.0,0.00035616,2]
[314855822,1708595451511,-500.83,0.00035616,2]
[314855823,1708595451520,-576.38,0.00035616,2]
[314855824,1708595451529,-500.0,0.00035616,2]
[314855825,1708595451538,-500.0,0.00035616,2]
[314855826,1708595451547,-500.0,0.00035616,2]
[314855827,1708595451557,-519.37,0.00035616,2]
[314855828,1708595451566,-500.0,0.00035616,2]
[314855829,1708595451575,-500.0,0.00035616,2]
[314855830,1708595451583,-551.35,0.00035616,2]
[314855831,1708595451593,-636.91,0.00035616,2]
[314855832,1708595451602,-2703.52,0.00035616,2]
[314855833,1708595451613,-500.0,0.00035616,2]
[314855834,1708595451621,-500.0,0.00035616,2]
[314855835,1708595451631,-500.0,0.00035616,2]
[314855836,1708595451640,-1040.05,0.00035616,2]
[314855837,1708595451649,-506.25582875,0.00035616,2]
[314855838,1708595451658,-356.72759068,0.00035616,2]
[314855839,1708595451667,-500.0,0.00035616,2]
[314855840,1708595451677,-500.0,0.00035616,2]
[314855841,1708595451686,-500.0,0.00035616,2]
[314855842,1708595451695,-500.0,0.00035616,2]
[314855843,1708595451704,-500.0,0.00035616,2]
[314855844,1708595451713,-503.54547426,0.00035616,2]
[314855845,1708595451723,-503.38336846,0.00035616,2]
[314855846,1708595451732,-507.90547658,0.00035616,2]
[314855847,1708595451741,-523.28,0.00035616,2]
[314855848,1708595451750,-500.0,0.00035616,2]
[314855849,1708595451759,-500.0,0.00035616,2]
[314855850,1708595451768,-500.0,0.00035616,2]
[314855851,1708595451778,-500.0,0.00035616,2]
[314855852,1708595451789,-500.0,0.00035616,2]
[314855853,1708595451798,-500.0,0.00035616,2]
[314855854,1708595451808,-500.0,0.00035616,2]
[314855855,1708595451818,-500.0,0.00035616,2]
[314855856,1708595451827,-500.0,0.00035616,2]
[314855857,1708595451838,-500.0,0.00035616,2]
[314855858,1708595451847,-500.0,0.00035616,2]
[314855859,1708595451858,-500.0,0.00035616,2]
[314855860,1708595451867,-500.0,0.00035616,2]
[314855861,1708595451876,-500.0,0.00035616,2]
[314855862,1708595451885,-500.0,0.00035616,2]
[314855863,1708595451895,-500.0,0.00035616,2]
[314855864,1708595451904,-500.0,0.00035616,2]
[314855865,1708595451914,-500.0,0.00035616,2]
[314855866,1708595451923,-500.0,0.00035616,2]
[314855867,1708595451931,-500.0,0.00035616,2]
[314855868,1708595451941,-500.0,0.00035616,2]
[314855869,1708595451951,-500.0,0.00035616,2]
[314855870,1708595451961,-500.0,0.00035616,2]
[314855871,1708595451970,-500.0,0.00035616,2]
[314855872,1708595451982,-505.33090121,0.00035616,2]
[314855873,1708595451992,-500.0,0.00035616,2]
[314855874,1708595452001,-500.0,0.00035616,2]
[314855875,1708595452010,-500.0,0.00035616,2]
[314855876,1708595452019,-593.81,0.00035616,2]
[314855877,1708595452028,-500.0,0.00035616,2]
[314855878,1708595452037,-508.12858644,0.00035616,2]
[314855879,1708595452047,-500.0,0.00035616,2]
[314855880,1708595452057,-500.0,0.00035616,2]
[314855881,1708595452066,-1006.57,0.00035616,2]
[314855882,1708595452075,-500.0,0.00035616,2]
[314855883,1708595452085,-3754.22,0.00035616,2]
[314855884,1708595452095,-500.0,0.00035616,2]
[314855885,1708595452104,-532.56280253,0.00035616,2]
[314855886,1708595452115,-500.0,0.00035616,2]
[314855887,1708595452125,-1307.53,0.00035616,2]
[314855888,1708595452134,-698.04,0.00035616,2]
[314855889,1708595452143,-500.0,0.00035616,2]
[314855890,1708595452153,-500.0,0.00035616,2]
[314855891,1708595452162,-500.0,0.00035616,2]
[314855892,1708595452171,-500.0,0.00035616,2]
[314855893,1708595452181,-1417.57,0.00035616,2]
[314855894,1708595452190,-500.0,0.00035616,2]
[314855895,1708595452200,-1444.16,0.00035616,2]
[314855896,1708595452209,-966.82,0.00035616,2]
[314855897,1708595452219,-500.0,0.00035616,2]
[314855898,1708595452229,-500.0,0.00035616,2]
[314855899,1708595452238,-500.0,0.00035616,2]
[314855900,1708595452247,-500.0,0.00035616,2]
[314855901,1708595452257,-509.73893896,0.00035616,2]
[314855902,1708595452266,-500.0,0.00035616,2]
[314855903,1708595452276,-1039.62,0.00035616,2]
[314855904,1708595452285,-505.08041081,0.00035616,2]
[314855905,1708595452294,-1194.6,0.00035616,2]
[314855906,1708595452304,-301.18412567,0.00035616,2]
[314855907,1708595452315,-500.0,0.00035616,2]
[314855908,1708595452324,-500.0,0.00035616,2]
[314855909,1708595452334,-619.72,0.00035616,2]
[314855910,1708595452343,-500.0,0.00035616,2]
[314855911,1708595452353,-500.0,0.00035616,2]
[314855912,1708595452364,-507.75,0.00035616,2]
[314855913,1708595452374,-500.0,0.00035616,2]
[314855914,1708595452384,-500.0,0.00035616,2]
[314855915,1708595452394,-500.0,0.00035616,2]
[314855916,1708595452403,-500.0,0.00035616,2]
[314855917,1708595452413,-3049.1,0.00035616,2]
[314855918,1708595452422,-500.0,0.00035616,2]
[314855919,1708595452431,-500.0,0.00035616,2]
[314855920,1708595452440,-500.0,0.00035616,2]
[314855921,1708595452450,-500.0,0.00035616,2]
[314855922,1708595452459,-500.0,0.00035616,2]
[314855923,1708595452469,-500.0,0.00035616,2]
[314855924,1708595452479,-500.0,0.00035616,2]
[314855925,1708595452488,-500.0,0.00035616,2]
[314855926,1708595452497,-500.0,0.00035616,2]
[314855927,1708595452507,-1448.88,0.00035616,2]
[314855928,1708595452516,-544.87195981,0.00035616,2]
[314855929,1708595452526,-500.0,0.00035616,2]
[314855930,1708595452535,-8412.68,0.00035616,2]
[314855931,1708595452544,-500.0,0.00035616,2]
[314855932,1708595452553,-797.95,0.00035616,2]
[314855933,1708595452562,-500.0,0.00035616,2]
[314855934,1708595452571,-500.0,0.00035616,2]
[314855935,1708595452580,-500.0,0.00035616,2]
[314855936,1708595452590,-504.01149215,0.00035616,2]
[314855937,1708595452599,-1638.86,0.00035616,2]
[314855938,1708595452611,-500.0,0.00035616,2]
[314855939,1708595452620,-500.0,0.00035616,2]
[314855940,1708595452630,-1808.59,0.00035616,2]
[314855941,1708595452639,-500.0,0.00035616,2]
[314855942,1708595452649,-500.0,0.00035616,2]
[314855943,1708595452658,-500.0,0.00035616,2]
[314855944,1708595452667,-500.0,0.00035616,2]
[314855945,1708595452676,-500.0,0.00035616,2]
[314855946,1708595452687,-500.0,0.00035616,2]
[314855947,1708595452696,-1440.37,0.00035616,2]
[314855948,1708595452706,-500.0,0.00035616,2]
[314855949,1708595452714,-500.0,0.00035616,2]
[314855950,1708595452725,-692.88,0.00035616,2]
[314855951,1708595452734,-500.0,0.00035616,2]
[314855952,1708595452743,-500.0,0.00035616,2]
[314855953,1708595452752,-2999.65,0.00035616,2]
[314855954,1708595452761,-1000.01,0.00035616,2]
[314855955,1708595452770,-224.95145445,0.00035616,2]
[314855956,1708595452780,-21605.57,0.00035616,2]
[314855957,1708595452792,-500.0,0.00035616,2]
[314855958,1708595452801,-507.25340825,0.00035616,2]
[314855959,1708595452812,-500.0,0.00035616,2]
[314855960,1708595452822,-500.0,0.00035616,2]
[314855961,1708595452833,-500.0,0.00035616,2]
[314855962,1708595452842,-500.0,0.00035616,2]
[314855963,1708595452851,-1867.44,0.00035616,2]
[314855964,1708595452864,-1370.04,0.00035616,2]
[314855965,1708595452874,-521.07,0.00035616,2]
[314855966,1708595452884,-500.0,0.00035616,2]
[314855967,1708595452893,-500.0,0.00035616,2]
[314855968,1708595452902,-500.0,0.00035616,2]
[314855969,1708595452912,-500.0,0.00035616,2]
[314855970,1708595452921,-500.0,0.00035616,2]
[314855971,1708595452930,-572.15883328,0.00035616,2]
[314855972,1708595452939,-500.0,0.00035616,2]
[314855973,1708595452948,-500.0,0.00035616,2]
[314855974,1708595452957,-2546.32,0.00035616,2]
[314855975,1708595452967,-500.0,0.00035616,2]
[314855976,1708595452976,-578.49,0.00035616,2]
[314855977,1708595452986,-502.46,0.00035616,2]
[314855978,1708595452995,-1172.5,0.00035616,2]
[314855979,1708595453004,-507.2717919,0.00035616,2]
[314855980,1708595453013,-500.0,0.00035616,2]
[314855981,1708595453022,-500.0,0.00035616,2]
[314855982,1708595453032,-500.0,0.00035616,2]
[314855983,1708595453041,-771.39,0.00035616,2]
[314855984,1708595453050,-1646.49,0.00035616,2]
[314855985,1708595453059,-7116.44,0.00035616,2]
[314855986,1708595453068,-506.30573806,0.00035616,2]
[314855987,1708595453078,-1645.52,0.00035616,2]
[314855988,1708595453087,-856.88,0.00035616,2]
[314855989,1708595453096,-1139.67,0.00035616,2]
[314855990,1708595453105,-500.0,0.00035616,2]
[314855991,1708595453117,-2954.0,0.00035616,2]
[314855992,1708595453125,-500.0,0.00035616,2]
[314855993,1708595453135,-500.0,0.00035616,2]
[314855994,1708595453144,-545.25,0.00035616,2]
[314855995,1708595453156,-500.0,0.00035616,2]
[314855996,1708595453165,-500.0,0.00035616,2]
[314855997,1708595453175,-1222.64,0.00035616,2]
[314855998,1708595453184,-500.0,0.00035616,2]
[314855999,1708595453193,-500.0,0.00035616,2]
[314856000,1708595453202,-500.0,0.00035616,2]
[314856001,1708595453213,-540.93728636,0.00035616,2]
[314856002,1708595453223,-500.0,0.00035616,2]
[314856003,1708595453232,-500.0,0.00035616,2]
[314856004,1708595453242,-500.0,0.00035616,2]
[314856005,1708595453251,-500.0,0.00035616,2]
[314856006,1708595453262,-666.91,0.00035616,2]
[314856007,1708595453271,-1757.62,0.00035616,2]
[314856008,1708595453281,-500.0,0.00035616,2]
[314856009,1708595453290,-1447.34,0.00035616,2]
[314856010,1708595453299,-684.23,0.00035616,2]
[314856011,1708595453309,-247.85030234,0.00035616,2]
[314856012,1708595453318,-500.0,0.00035616,2]
[314856013,1708595453327,-604.65,0.00035616,2]
[314856014,1708595453338,-614.24,0.00035616,2]
[314856015,1708595453348,-15010.33,0.00035616,2]
[314856016,1708595453358,-1250.25,0.00035616,2]
[314856017,1708595453473,-500.0,0.00035616,2]
[314856018,1708595453491,-4617.56,0.00035616,2]
[314856019,1708595453500,-1857.32,0.00035616,2]
[314856020,1708595453509,-500.0,0.00035616,2]
[314856021,1708595453519,-500.0,0.00035616,2]
[314856022,1708595453528,-5340.95,0.00035616,2]
[314856023,1708595453537,-500.0,0.00035616,2]
[314856024,1708595453546,-424.78169131,0.00035616,2]
[314856025,1708595453555,-565.44214804,0.00035616,2]
[314856026,1708595453564,-500.0,0.00035616,2]
[314856027,1708595453574,-769.99,0.00035616,2]
[314856028,1708595453583,-500.0,0.00035616,2]
[314856029,1708595453592,-500.0,0.00035616,2]
[314856030,1708595453601,-791.17,0.00035616,2]
[314856031,1708595453612,-500.0,0.00035616,2]
[314856032,1708595453621,-500.0,0.00035616,2]
[314856033,1708595453631,-2222.99,0.00035616,2]
[314856034,1708595453640,-500.0,0.00035616,2]
[314856035,1708595453649,-853.09,0.00035616,2]
[314856036,1708595453658,-500.0,0.00035616,2]
[314856037,1708595453668,-590.9,0.00035616,2]
[314856038,1708595453677,-1336.94,0.00035616,2]
[314856039,1708595453686,-1233.79,0.00035616,2]
[314856040,1708595453695,-500.0,0.00035616,2]
[314856041,1708595453705,-500.0,0.00035616,2]
[314856042,1708595453714,-500.0,0.00035616,2]
[314856043,1708595453723,-500.0,0.00035616,2]
[314856044,1708595453733,-500.0,0.00035616,2]
[314856045,1708595453742,-5148.61,0.00035616,2]
[314856046,1708595453752,-500.0,0.00035616,2]
[314856047,1708595453761,-500.0,0.00035616,2]
[314856048,1708595453770,-591.94,0.00035616,2]
[314856049,1708595453780,-500.0,0.00035616,2]
[314856050,1708595453793,-1948.3,0.00035616,2]
[314856051,1708595453802,-500.0,0.00035616,2]
[314856052,1708595453812,-500.0,0.00035616,2]
[314856053,1708595453821,-500.0,0.00035616,2]
[314856054,1708595453832,-500.0,0.00035616,2]
[314856055,1708595453841,-173.64773994,0.00035616,2]
[314856056,1708595453851,-735.95,0.00035616,2]
[314856057,1708595453862,-510.19147109,0.00035616,2]
[314856058,1708595453872,-500.0,0.00035616,2]
[314856059,1708595453881,-500.0,0.00035616,2]
[314856060,1708595453891,-234.93498041,0.00035616,2]
[314856061,1708595453900,-508.67207957,0.00035616,2]
[314856062,1708595453909,-500.0,0.00035616,2]
[314856063,1708595453919,-595.87,0.00035616,2]
[314856064,1708595453940,-500.0,0.00035616,2]
[314856065,1708595453950,-1154.86,0.00035616,2]
[314856066,1708595453960,-588.42,0.00035616,2]
[314856067,1708595453969,-597.26,0.00035616,2]
[314856068,1708595453979,-500.0,0.00035616,2]
[314856069,1708595453989,-500.0,0.00035616,2]
[314856070,1708595453998,-500.0,0.00035616,2]
[314856071,1708595454007,-848.87,0.00035616,2]
[314856072,1708595454016,-500.0,0.00035616,2]
[314856073,1708595454026,-500.0,0.00035616,2]
[314856074,1708595454035,-2853.89,0.00035616,2]
[314856075,1708595454044,-500.0,0.00035616,2]
[314856076,1708595454053,-500.0,0.00035616,2]
[314856077,1708595454063,-500.0,0.00035616,2]
[314856078,1708595454072,-500.0,0.00035616,2]
[314856079,1708595454081,-500.0,0.00035616,2]
[314856080,1708595454091,-500.0,0.00035616,2]
[314856081,1708595454100,-500.0,0.00035616,2]
[314856082,1708595454111,-500.0,0.00035616,2]
[314856083,1708595454121,-3292.81,0.00035616,2]
[314856084,1708595454130,-500.0,0.00035616,2]
[314856085,1708595454139,-500.0,0.00035616,2]
[314856086,1708595454150,-2752.17,0.00035616,2]
[314856087,1708595454159,-508.74945498,0.00035616,2]
[314856088,1708595454170,-534.71801843,0.00035616,2]
[314856089,1708595454179,-653.17,0.00035616,2]
[314856090,1708595454188,-555.72,0.00035616,2]
[314856091,1708595454198,-500.0,0.00035616,2]
[314856092,1708595454207,-514.31406766,0.00035616,2]
[314856093,1708595454217,-500.0,0.00035616,2]
[314856094,1708595454227,-503.10622702,0.00035616,2]
[314856095,1708595454237,-500.0,0.00035616,2]
[314856096,1708595454246,-9587.98,0.00035616,2]
[314856097,1708595454257,-1069.01,0.00035616,2]
[314856098,1708595454267,-500.0,0.00035616,2]
[314856099,1708595454278,-866.1,0.00035616,2]
[314856100,1708595454289,-989.28,0.00035616,2]
[314856101,1708595454298,-500.0,0.00035616,2]
[314856102,1708595454308,-500.0,0.00035616,2]
[314856103,1708595454318,-500.0,0.00035616,2]
[314856104,1708595454327,-606.54,0.00035616,2]
[314856105,1708595454336,-500.0,0.00035616,2]
[314856106,1708595454345,-500.0,0.00035616,2]
[314856107,1708595454355,-16494.55,0.00035616,2]
[314856108,1708595454365,-8536.81,0.00035616,2]
[314856109,1708595454374,-500.0,0.00035616,2]
[314856110,1708595454383,-913.98,0.00035616,2]
[314856111,1708595454392,-500.0,0.00035616,2]
[314856112,1708595454401,-500.0,0.00035616,2]
[314856113,1708595454410,-275.45,0.00035616,2]
[314856114,1708595454420,-500.0,0.00035616,2]
[314856115,1708595454429,-500.0,0.00035616,2]
[314856116,1708595454439,-500.0,0.00035616,2]
[314856117,1708595454448,-500.0,0.00035616,2]
[314856118,1708595454458,-500.0,0.00035616,2]
[314856119,1708595454467,-500.0,0.00035616,2]
[314856120,1708595454477,-3617.55,0.00035616,2]
[314856121,1708595454486,-500.0,0.00035616,2]
[314856122,1708595454495,-590.14240089,0.00035616,2]
[314856123,1708595454504,-500.0,0.00035616,2]
[314856124,1708595454514,-500.0,0.00035616,2]
[314856125,1708595454523,-500.0,0.00035616,2]
[314856126,1708595454533,-503.91467274,0.00035616,2]
[314856127,1708595454542,-500.0,0.00035616,2]
[314856128,1708595454551,-500.0,0.00035616,2]
[314856129,1708595454561,-540.16847661,0.00035616,2]
[314856130,1708595454570,-3287.79,0.00035616,2]
[314856131,1708595454579,-500.0,0.00035616,2]
[314856132,1708595454589,-500.0,0.00035616,2]
[314856133,1708595454599,-500.0,0.00035616,2]
[314856134,1708595454609,-2201.19,0.00035616,2]
[314856135,1708595454618,-500.0,0.00035616,2]
[314856136,1708595454628,-3358.45,0.00035616,2]
[314856137,1708595454638,-726.03,0.00035616,2]
[314856138,1708595454648,-500.0,0.00035616,2]
[314856139,1708595454658,-500.0,0.00035616,2]
[314856140,1708595454668,-500.0,0.00035616,2]
[314856141,1708595454678,-977.47,0.00035616,2]
[314856142,1708595454688,-500.0,0.00035616,2]
[314856143,1708595454698,-500.0,0.00035616,2]
[314856144,1708595454707,-500.0,0.00035616,2]
[314856145,1708595454717,-500.0,0.00035616,2]
[314856146,1708595454726,-500.0,0.00035616,2]
[314856147,1708595454736,-1030.22,0.00035616,2]
[314856148,1708595454745,-662.81,0.00035616,2]
[314856149,1708595454755,-500.0,0.00035616,2]
[314856150,1708595454764,-1583.51,0.00035616,2]
[314856151,1708595454774,-500.0,0.00035616,2]
[314856152,1708595454783,-575.44,0.00035616,2]
[314856153,1708595454793,-502.65579115,0.00035616,2]
[314856154,1708595454802,-500.0,0.00035616,2]
[314856155,1708595454814,-521.78,0.00035616,2]
[314856156,1708595454824,-500.0,0.00035616,2]
[314856157,1708595454834,-500.0,0.00035616,2]
[314856158,1708595454844,-1577.59,0.00035616,2]
[314856159,1708595454854,-500.0,0.00035616,2]
[314856160,1708595454865,-500.0,0.00035616,2]
[314856161,1708595454874,-500.0,0.00035616,2]
[314856162,1708595454886,-1286.3,0.00035616,2]
[314856163,1708595454897,-508.53,0.00035616,2]
[314856164,1708595454907,-500.0,0.00035616,2]
[314856165,1708595454916,-500.0,0.00035616,2]
[314856166,1708595454926,-1507.31,0.00035616,2]
[314856167,1708595454935,-1226.98,0.00035616,2]
[314856168,1708595454944,-1591.12,0.00035616,2]
[314856169,1708595454955,-500.0,0.00035616,2]
[314856170,1708595454965,-1233.62,0.00035616,2]
[314856171,1708595454975,-1968.36,0.00035616,2]
[314856172,1708595454984,-640.21,0.00035616,2]
[314856173,1708595454994,-500.0,0.00035616,2]
[314856174,1708595455003,-500.0,0.00035616,2]
[314856175,1708595455013,-500.0,0.00035616,2]
[314856176,1708595455022,-2891.95,0.00035616,2]
[314856177,1708595455032,-500.0,0.00035616,2]
[314856178,1708595455041,-987.92,0.00035616,2]
[314856179,1708595455051,-4874.85,0.00035616,2]
[314856180,1708595455060,-500.0,0.00035616,2]
[314856181,1708595455069,-155.36137988,0.00035616,2]
[314856182,1708595455079,-503.90927117,0.00035616,2]
[314856183,1708595455089,-565.64529012,0.00035616,2]
[314856184,1708595455098,-2912.19,0.00035616,2]
[314856185,1708595455108,-500.0,0.00035616,2]
[314856186,1708595455118,-845.03,0.00035616,2]
[314856187,1708595455127,-500.0,0.00035616,2]
[314856188,1708595455137,-500.0,0.00035616,2]
[314856189,1708595455146,-500.0,0.00035616,2]
[314856190,1708595455156,-500.0,0.00035616,2]
[314856191,1708595455166,-500.0,0.00035616,2]
[314856192,1708595455176,-500.0,0.00035616,2]
[314856193,1708595455185,-500.0,0.00035616,2]
[314856194,1708595455196,-2531.64,0.00035616,2]
[314856195,1708595455205,-1024.62,0.00035616,2]
[314856196,1708595455215,-500.0,0.00035616,2]
[314856197,1708595455225,-500.0,0.00035616,2]
[314856198,1708595455235,-502.98815346,0.00035616,2]
[314856199,1708595455245,-500.0,0.00035616,2]
[314856200,1708595455255,-500.0,0.00035616,2]
[314856201,1708595455265,-500.0,0.00035616,2]
[314856202,1708595455274,-15857.31,0.00035616,2]
[314856203,1708595455284,-2054.03,0.00035616,2]
[314856204,1708595455294,-500.0,0.00035616,2]
[314856205,1708595455304,-4367.37,0.00035616,2]
[314856206,1708595455313,-500.0,0.00035616,2]
[314856207,1708595455323,-500.0,0.00035616,2]
[314856208,1708595455332,-500.0,0.00035616,2]
[314856209,1708595455342,-500.0,0.00035616,2]
[314856210,1708595455351,-500.0,0.00035616,2]
[314856211,1708595455361,-500.0,0.00035616,2]
[314856212,1708595455370,-1707.98,0.00035616,2]
[314856213,1708595455379,-696.17,0.00035616,2]
[314856214,1708595455389,-1361.15,0.00035616,2]
[314856215,1708595455399,-1537.52,0.00035616,2]
[314856216,1708595455408,-500.0,0.00035616,2]
[314856217,1708595455418,-606.67,0.00035616,2]
[314856218,1708595455427,-500.0,0.00035616,2]
[314856219,1708595455437,-906.9,0.00035616,2]
[314856220,1708595455446,-500.0,0.00035616,2]
[314856221,1708595455456,-592.52,0.00035616,2]
[314856222,1708595455466,-500.0,0.00035616,2]
[314856223,1708595455476,-500.0,0.00035616,2]
[314856224,1708595455485,-11615.81,0.00035616,2]
[314856225,1708595455495,-21140.7,0.00035616,2]
[314856226,1708595455505,-2155.84,0.00035616,2]
[314856227,1708595455514,-500.0,0.00035616,2]
[314856228,1708595455524,-500.0,0.00035616,2]
[314856229,1708595455534,-500.0,0.00035616,2]
[314856230,1708595455544,-1683.13,0.00035616,2]
[314856231,1708595455553,-1775.46,0.00035616,2]
[314856232,1708595455563,-1635.55,0.00035616,2]
[314856233,1708595455573,-784.18,0.00035616,2]
[314856234,1708595455582,-500.0,0.00035616,2]
[314856235,1708595455592,-500.0,0.00035616,2]
[314856236,1708595455601,-500.0,0.00035616,2]